Cogmind - Beta 16.1 @@@ ROGUE MODE // 2026.04.27 @ 04:28:13 Player: shapeshifter Result: Destroyed by W9-S8S(R) with Subdweller Laser Performance ------------- Evolutions (0) 0 Regions Visited (2) 400 Robots Destroyed (30) 150 Value Destroyed (917) 917 Prototype IDs (13) 260 Alien Tech Used (0) 0 Bonus (0) 0 TOTAL SCORE: 1727 Bonus ------- None Cogmind --------- Core Integrity 0/250 Matter 300/300 Energy 60/100 System Corruption 0% Temperature Cool (6) Movement Rolling (130) Ox2 Location -10/Subcaves Parts ------- > --- POWER (1) -------- Subdweller Power Source > --- PROPULSION (2) --- Subdweller Monowheel Subdweller Monowheel > --- UTILITY (2) ------ Huge Storage Unit Light Armor Plating > --- WEAPON (2) ------- Subdweller Beam Cannon Subdweller Beam Cannon > --- INVENTORY (25) --- Meta Core Cargo Legs Subdweller Monowheel Small Storage Unit High-capacity Matter Pod (200) Structural Scanner Subdweller Optics Scrap Shield Makeshift Hacking Suite Subdweller Laser Subdweller Beam Cannon Subdweller Machine Gun Subdweller Machine Gun Battle Cannon Battle Cannon Slug Cannon Subdweller Shrapnel Launcher 1B-0RG's Assimilator Datajack Peak State ------------ > --- POWER ------------ Subdweller Power Source > --- PROPULSION ------- Subdweller Monowheel Subdweller Monowheel > --- UTILITY ---------- Huge Storage Unit Light Armor Plating > --- WEAPON ----------- Subdweller Beam Cannon Subdweller Beam Cannon > --- INVENTORY -------- Meta Core Cargo Legs Subdweller Monowheel Small Storage Unit High-capacity Matter Pod Structural Scanner Subdweller Optics Scrap Shield Makeshift Hacking Suite Subdweller Laser Subdweller Beam Cannon Subdweller Machine Gun Subdweller Machine Gun Battle Cannon Battle Cannon Slug Cannon Subdweller Shrapnel Launcher 1B-0RG's Assimilator Datajack [Rating: 24] Favorites ----------- Power Subdweller Power Source Engine Subdweller Power Source Propulsion Subdweller Monowheel Treads Light Treads Wheel Subdweller Monowheel Utility Huge Storage Unit Device Structural Scanner Storage Huge Storage Unit Protection Light Armor Plating Weapon Subdweller Beam Cannon Energy Gun Medium Laser Energy Cannon Subdweller Beam Cannon Ballistic Gun Subdweller Machine Gun Ballistic Cannon Slug Cannon Build | -11 -10 -10 ------- Run | Yrd Mat Sub Slots Evolved . | . . . Power . | . . . Propulsion . | . . . Utility . | . . . Weapon . | . . . Parts Attached 23 | 6 1 16 Power 3 | 1 . 2 Engine 3 | 1 . 2 Core . | . . . Reactor . | . . . Propulsion 6 | 2 . 4 Treads 2 | 2 . . Leg . | . . . Wheel 4 | . . 4 Hover . | . . . Flight . | . . . Utility 5 | 1 1 3 Device 1 | . . 1 Storage 2 | 1 . 1 Processor . | . . . Hackware . | . . . Protection 2 | . 1 1 Artifact . | . . . Weapon 9 | 2 . 7 Energy Gun 2 | 2 . . Energy Cannon 4 | . . 4 Ballistic Gun 1 | . . 1 Ballistic Cannon 2 | . . 2 Launcher . | . . . Special Weapon . | . . . Impact Weapon . | . . . Slashing Weapon . | . . . Piercing Weapon . | . . . Special Melee Weapon . | . . . Unidentified Prototypes . | . . . Parts Lost 5 | . . 5 Power 1 | . . 1 Propulsion 3 | . . 3 Utility . | . . . Weapon 1 | . . 1 Highest Loss Streak 2 | . . 2 To Critical Strikes . | . . . Average Backups 10 | 3 6 11 Power . | . . . Propulsion . | 1 1 . Utility 3 | . 2 4 Weapon 4 | . 1 5 Tool/Special . | . . . Unused Backups 22 | . 6 16 Power 1 | . 1 . Propulsion 3 | . 1 2 Utility 8 | . 3 5 Weapon 7 | . 1 6 Tool/Special 3 | . . 3 Average Slot Usage (%) 96 | . 96 97 Engine 13 | . 14 13 Treads 8 | . 28 2 Wheel 17 | . . 22 Device 6 | . . 8 Storage 14 | . 14 14 Protection 6 | . 10 5 Energy Gun 8 | . 28 3 Energy Cannon 13 | . . 17 Ballistic Gun 2 | . . 2 Ballistic Cannon 3 | . . 4 Peak Build Rating 24 | 6 7 24 Average Rating 12 | 4 6 13 On Entrance 4 | . 6 7 Avg Prop Armor Cover (%) . | . . . Naked Turns . | . . . Heaviest Build 104 | 14 17 104 Greatest Support 40 | 40 40 40 Greatest Overweight (x) 5 | . . 5 Average Overweight (x) 1 | . . 2 Largest Inventory Capacity 25 | 8 8 25 Average Capacity 18 | 7 8 21 Most Carried 25 | 5 8 25 Average Carried 11 | 3 7 12 Final Capacity 25 | 8 8 25 Final Carried 25 | 4 8 25 Class Distribution -------------------- 87% | Mutant 12% | Scavenger-Mutant Dominant Class ---------------- Mutant | -10/Materials Mutant | -10/Subcaves Resources | -11 -10 -10 ----------- Run | Yrd Mat Sub Matter Collected 854 | 199 145 510 Remotely . | . . . Salvage Created 1156 | . 275 881 Parts 83 | . 16 67 Haulers Intercepted 1 | . 1 . Recyclers Shooed . | . . . Parts Field Recycled . | . . . Retrieved Matter . | . . . Parts Self-Destructed 12 | . . 12 Prevented . | . . . Parts Restored . | . . . Kills | -11 -10 -10 ------- Run | Yrd Mat Sub Combat Hostiles Destroyed 26 | . 6 20 Guns 10 | . 6 4 Cannons 14 | . . 14 Classes Destroyed 7 | . 5 2 Worker 2 | . 2 . Builder 1 | . 1 . Hauler 1 | . 1 . Swarmer 4 | . 3 1 Grunt 5 | . 3 2 Sentry 1 | . . 1 Subdweller 16 | . . 16 Best Kill Streak 3 | . 3 3 Combat Bots Only 3 | . 2 3 Max Kills in Single Turn 2 | . 1 2 Gunslinging . | . . . Exploded . | . . . Melee . | . . . Uniques/NPCs Destroyed . | . . . Combat | -11 -10 -10 -------- Run | Yrd Mat Sub Hostile Shots Fired 97 | . 26 71 Missed 24 | . 7 17 Hits 73 | . 19 54 Projectile 73 | . 19 54 AOE 4 | . . 4 Critical Strikes 1 | . . 1 Damage Taken 1353 | . 177 1176 Core 265 | . 27 238 Absorbed by Shields . | . . . Core Remaining (%) 100 | 100 . . Volleys Fired 98 | 6 26 66 Largest 2 | 2 2 2 Hottest 160 | 100 100 160 Shots Fired 195 | 12 52 131 Gun 105 | 12 52 41 Cannon 90 | . . 90 Launcher . | . . . Special . | . . . Kinetic 6 | . . 6 Thermal 189 | 12 52 125 Explosive . | . . . Electromagnetic . | . . . Robot Hit Streak 11 | 2 5 11 Robot Miss Streak 6 | 1 6 2 Penetration Max . | . . . Secondary Targets 1 | . . 1 Max Gunslinging Chain 1 | . . 1 Shots Hit Robots 107 | 4 25 78 Core Hits 40 | 1 14 25 Critical Kills 1 | . . 1 Critical Parts Destroyed . | . . . Critical Strikes 10 | . 3 7 Burn 8 | . 3 5 Meltdown 1 | . . 1 Blast 1 | . . 1 Melee Attacks . | . . . Impact . | . . . Slashing . | . . . Piercing . | . . . Sneak Attacks . | . . . Combat Hostiles . | . . . Follow-up Attacks . | . . . Damage Inflicted 1972 | 50 327 1595 Guns 797 | 50 327 420 Cannons 1175 | . . 1175 Explosions . | . . . Melee . | . . . Ramming . | . . . Kinetic 54 | . . 54 Thermal 1918 | 50 327 1541 Explosive . | . . . Electromagnetic . | . . . Impact . | . . . Slashing . | . . . Piercing . | . . . Highest Corruption . | . . . Average Corruption . | . . . Corruption Purged . | . . . Corruption Blocked . | . . . Overload Shots . | . . . Overflow Damage 23 | . . 23 Projectiles 23 | . . 23 Explosions . | . . . Melee . | . . . Knockbacks . | . . . Impact . | . . . Kinetic . | . . . Secondary . | . . . Self-Inflicted Damage . | . . . Shots . | . . . Rammed . | . . . Targets Rammed . | . . . Kicked . | . . . Crushed . | . . . Highest Temperature 337 | 156 337 264 Average Temperature 80 | 66 95 68 Received Heat Transfer 225 | . 54 171 Siege Activations . | . . . Martial Activations . | . . . Shielding Activations . | . . . Robots Disrupted . | . . . Combat Hostiles . | . . . Robots Corrupted . | . . . Combat Hostiles . | . . . Parts Fried . | . . . Impact Corruptions . | . . . Robots Melted 2 | . . 2 Combat Hostiles 2 | . . 2 Parts Melted 5 | . 1 4 Heat Transferred 4403 | 148 1184 3071 Parts Sabotaged . | . . . Parts Stolen . | . . . Parts Stripped . | . . . Power Chain Reactions . | . . . Alert | -11 -10 -10 ------- Run | Yrd Mat Sub Maximum Alert Level . | . . . Low Security (%) 100 | 100 100 . Level 1 . | . . . Level 2 . | . . . Level 3 . | . . . Level 4 . | . . . Level 5 . | . . . High Security . | . . . Max Security . | . . . Peak Influence 71 | . 71 . Initial . | . . . Average 19 | . 21 . Influence Increases 278 | . 188 90 Destroy 0b10 Robot/C 200 | . 120 80 Destroy 0b10 Robot/NC 20 | . 20 . Destroy Leader 42 | . 32 10 Destroy Structure 1 | . 1 . Lose Combat Pursuer 15 | . 15 . Influence Decreases 278 | . 162 116 Entered New Map 14 | . . 14 Time Decay 262 | . 162 100 Lost Part 2 | . . 2 Squads Dispatched 2 | . 2 . Investigation 1 | . 1 . Extermination . | . . . Reinforcement 1 | . 1 . Assault . | . . . Garrison . | . . . Intercept . | . . . Searches Triggered . | . . . Construction Impeded . | . . . Haulers Reinforced . | . . . Active Scanning Responses . | . . . Cargo Convoy Interrupts . | . . . Stealth | -11 -10 -10 --------- Run | Yrd Mat Sub Distress Signals 1 | . 1 . Communications Jammed . | . . . Distress Signals . | . . . Times Spotted 30 | . 9 21 Peak Tracking Total 4 | . 4 2 Tactical Retreats 1 | . 1 . Traps | -11 -10 -10 ------- Run | Yrd Mat Sub Traps Triggered 1 | . 1 . Indirectly . | . . . Trap Hack Attempts . | . . . Triggered . | . . . Disarmed . | . . . Reprogrammed . | . . . Reused . | . . . Traps Extracted . | . . . Installed . | . . . Triggered . | . . . Machines | -11 -10 -10 ---------- Run | Yrd Mat Sub Machines Disabled 1 | . . 1 Max in Single Turn 1 | . . 1 Machines Repaired . | . . . Machines Dismantled . | . . . Machines Sabotaged . | . . . Overloaded Fab Kills . | . . . Hacking | -11 -10 -10 --------- Run | Yrd Mat Sub Machines Accessed 3 | . 2 1 Terminals 1 | . 1 . Fabricators . | . . . Repair Stations . | . . . Recycling Units 1 | . 1 . Scanalyzers . | . . . Garrison Access . | . . . Total Hacks 6 | . 5 1 Successful 3 | . 2 1 Failed 3 | . 3 . Catastrophic . | . . . Database Lockouts . | . . . Manual 2 | . 2 . Terminals 2 | . 2 . Fabricators . | . . . Repair Stations . | . . . Recycling Units 3 | . 3 . Scanalyzers . | . . . Garrison Access . | . . . Terminal Hacks 1 | . . 1 Proto ID Catalog 1 | . . 1 Fabricator Hacks . | . . . Repair Station Hacks . | . . . Recycling Unit Hacks 1 | . 1 . Retrieve Components 1 | . 1 . Scanalyzer . | . . . Garrison Access Hacks . | . . . Unauthorized Hacks 1 | . 1 . Terminals 1 | . 1 . Skim 1 | . 1 . Fabricators . | . . . Repair Stations . | . . . Recycling Units . | . . . Scanalyzers . | . . . Garrison Access . | . . . Data Cores Recovered . | . . . Used . | . . . Hacking Detections 2 | . 2 . Full Trace Events . | . . . Feedback Events . | . . . Feedback Blocked . | . . . Robot Schematics Acquired . | . . . Robots Built . | . . . Authchips . | . . . Time . | . . . Total Robot Build Rating . | . . . Part Schematics Acquired . | . . . Parts Built . | . . . Authchips . | . . . Time . | . . . Total Part Build Rating . | . . . Part Studies Acquired . | . . . Parts Repaired . | . . . Time . | . . . Parts Recycled . | . . . Recycled Matter . | . . . Retrieved Matter . | . . . Retrieved Components . | . . . Parts Scanalyzed . | . . . Part Schematics Acquired . | . . . Parts Damaged . | . . . Bothacking | -11 -10 -10 ------------ Run | Yrd Mat Sub Used RIF Installer . | . . . Robots Hacked . | . . . Non-combat . | . . . Combat . | . . . Robot Hacks Applied . | . . . Relay Couplers Released . | . . . Fabnet Peak Effective % . | . . . Robots Rewired . | . . . Allies Hacked . | . . . Hacks Repelled . | . . . Allies | -11 -10 -10 -------- Run | Yrd Mat Sub Total Allies . | . . . Largest Group . | . . . Highest-Rated Group . | . . . Highest-Rated Ally . | . . . Total Orders . | . . . Ally Attacks . | . . . Total Damage . | . . . Kills . | . . . Allies Corrupted . | . . . Allies Melted . | . . . Intel | -11 -10 -10 ------- Run | Yrd Mat Sub Active Infowar (turns) 1461 | . . 1461 Structural 1461 | . . 1461 Robot Analysis Total . | . . . Derelict Logs Recovered 2 | . . 2 Drone Launches . | . . . Drone Recoveries . | . . . Exploration | -11 -10 -10 ------------- Run | Yrd Mat Sub Turns Passed 3205 | 95 674 2436 Spaces Moved 1622 | 51 308 1263 Core 19 | 17 . 2 Treads 464 | 34 308 122 Legs . | . . . Wheels 1139 | . . 1139 Hover . | . . . Flight . | . . . Fastest Speed 50 | 50 160 95 Average Speed 142 | 123 160 139 Slowest Speed 300 | 160 160 300 Overloaded Moves . | . . . Propulsion Burnouts . | . . . Robots Hopped . | . . . Potential Cave-ins . | . . . Cave-ins Triggered . | . . . Exploration Rate (%) 43 | 4 47 79 Regions Visited 2 Branch Regions 1 Pre-discovered Areas 1 | . . 1 Known Exits Taken . | . . . Unknown Exits Taken 2 | 1 1 . Scrap Searched 13 | . . 13 Spaces Dug 3 | . . 3 Terrain Destroyed 8 | . . 8 Melee . | . . . Projectile 8 | . . 8 AOE . | . . . Terrain Rammed . | . . . Walls Destroyed . | . . . Machines Disabled . | . . . Actions | -11 -10 -10 --------- Run | Yrd Mat Sub Total 2317 | 71 440 1806 Wait 516 | . 90 426 Move 1620 | 50 307 1263 Hop . | . . . Pick Up 41 | 9 10 22 Fast Attach 7 | 1 1 5 Attach 10 | 5 . 5 Detach . | . . . Swap 8 | . . 8 Drop 17 | . 6 11 Fire 98 | 6 26 66 Melee . | . . . Ram . | . . . Kick . | . . . Crush . | . . . Escape Stasis . | . . . Rewire . | . . . Trap . | . . . Miscellaneous . | . . . Route ------- -11/Scrapyard -10/Materials (discovered 2 exits: [*Mat] / *Sub) -10/Subcaves (discovered 2 exits: [*Mat] / [*Scr]) History --------- Turn | Location | Event 5 | -11/Scrapyard | Discovered new exit (range 14) 96 | -11/Scrapyard | Entered Materials 313 | -10/Materials | Build established: Mutant 346 | -10/Materials | Discovered new exit (range 14) 742 | -10/Materials | Discovered new exit (range 8) 770 | -10/Materials | Entered Subcaves 771 | -10/Subcaves | Approached by a straggling Scientist 973 | -10/Subcaves | Learned 2 Materials zone layouts 1198 | -10/Subcaves | Scientist uncovered a shortcut to Scraptown 1220 | -10/Subcaves | Found Prototype Power Core 1537 | -10/Subcaves | Curiously followed by a Cobbler waking with a query about "LVR3C" 1905 | -10/Subcaves | Shifting Twisted Machinery released Riot Gun 1912 | -10/Subcaves | Shifting Twisted Machinery released Sub. Beam Cannon 1935 | -10/Subcaves | Discovered new exit (range 10) 2188 | -10/Subcaves | Learned location of Zion (-7) 2315 | -10/Subcaves | A swath of the cavern ceiling suddenly collapsed 2330 | -10/Subcaves | Shifting Twisted Machinery released Scrap Shield 2603 | -10/Subcaves | Disturbed a concealed Subdweller 2762 | -10/Subcaves | Core integrity fell below 50% 2873 | -10/Subcaves | Core integrity fell below 20% 2889 | -10/Subcaves | Shifting Twisted Machinery released Sub. Monowheel 2922 | -10/Subcaves | Shifting Twisted Machinery released Barrage Gun 2977 | -10/Subcaves | A swath of the cavern ceiling suddenly collapsed 3048 | -10/Subcaves | Visited 4L-MR0's lab 3053 | -10/Subcaves | Identified Meta Core 3064 | -10/Subcaves | Found Cargo Legs 3069 | -10/Subcaves | Found Prototype Special Melee Weapon 3206 | -10/Subcaves | Destroyed by W9-S8S(R) with Subdweller Laser Last Messages --------------- Gun Armor Tower Shield Power Bank Rainbow Chip Procsplitter VL-GR5's Exoskeleton "Deathgrip" Powered Cannon 03055_ 4L-MR0 mumbles to no one in particular: "Damn Subs sneaking around stealing my stuff." 03059_ Testing Chamber breached. 03064_ Acquired Cargo Legs. 03068_ 4L-MR0 mumbles: "I'm surprised some of them are even willing to come in here given their fear of my usual visitors." 03068_ Dropped Lgt. Cannon. 03068_ Dropped Grenade Launcher. 03069_ Acquired Prototype Special Melee Weapon. 03083_ Sub. Power Source shoots sparks and powers down. 03132_ LF-I0V(R) destroyed. 03152_ 37-DQL(R) destroyed. 03169_ FL-7NK(O) collects matter. Map ----- +----------------------------------------------------+ | ??????????????????????????##### ###????????? | | ??????????????????????????#" / #??????????? | | ??????????????????????????# "##########??????????? | | ??????????????????????????#"[####????###$#???????? | | ??????????????????????????#" "##### " "#???????? | | ??????????????????????????#"|[[ # "#????????? | | ??????????????????????????##" ##""######???? | | ??????????????????? ####??## ## "#??# #???? | | ??????????????????? #?#####" "#### ##??? | | ?????????????????? ### " ## #??? | | ?????????????????? #?## | | ???????????????????# ## ### | | ???????????????????#### ## ### ## | | ??????????????????????## ## ## #### | | ???????????????????????# ## ##??# | | ???????????????????????# ## ### ###?## | [ | | ????????????????????# #?# # #?### && | | ??????????????????? #### ##?# && | | ???????????????????? ######" #??## "! | | ????????????????????#??????#"## ## #???# """ | | ???????????????????????????#"#"# #?##???# "" | | ????????????????????????????""#| #??????## " | | ???????????????????###?#######;#" #??????# " | | ???????????????????#"###;;##;;#"# #??????# | | ??????????????????##;##;;;; "###"# #?????# | | #????????????????## ;; ; @####?#" #????# | | #????????????????###"#"""R#????##########????# ## | | #????????????????#"###""";#??????????????????####? | | #????????????????#""#"## ##??????????????????????? | | #????????????????# ###; #???????????????????????? | | #?????????????????? # ##???????????????????????? | | #???????????????????# #;##???????????????????????? | | #????????????????##?# # ##???????????????????????? | | ?????????????????# ###"###???????????????????????? | | ?????????????????# """ ##???????????????????????? | | ?????????????????## """ #???????????????????????? | | ??????????????????# " ##??????????????????????? | | ??????????????????# #??????????????????????? | | ??????????????????# " ##?????????????????????? | | ??????????????????# """ " #?????????????????????? | | ?????????????????##""" ##?????????????????????? | | ?????????????????#"" ## ##??????????????????????? | | ?????????????????##" #####???????????????????????? | | ??????????????????##&*##?????????????????????????? | | ??????????????????## ######"?"???????????????????? | | ??????????????????#= ! #####"##"?????????????????? | | ??????????????????##* ##"#""[#?????????????????? | | ??????????????????## """""?????????????????? | | ??????????????????# # #""?????????????????? | | ??????????????????## #" ##??#####??????????????? | +----------------------------------------------------+ Best States ------------- Heat Dissipation 25 Energy Generation 15 Energy Capacity 250 Matter Stores 300 Matter Capacity 300 Sight Range 16 Terrain Scan Density 10 Armor Coverage 150 Evasion (%) 50 Recoil Reduction 2 Item Schematics ----------------- None Robot Schematics ------------------ None Fabricated ------------ Nothing Repaired ---------- Nothing Studied --------- None Alien Tech Used ----------------- None Achievements -------------- None Challenges ------------ None Game ------ Seed SingularityGravityCloak Manual? 0 Play Time 00:14:20 Cumulative 812.9 hours Start 2026.04.27 @ 04:05:28 End 2026.04.27 @ 04:28:13 Sessions 2 Manual Loads 0 Difficulty Rogue Special Mode None Game No. 982 Rogue 982 Adventurer 0 Explorer 0 Win Type - Total 32 Types 16/1/5/3/2/0/2/2/1/0 Lore% 97 Gallery% 96 Achievement% 88 Wizard Run 0 Options --------- Layout 0 ASCII 0 Keyboard 0 Movement Mouse Keybinds 0 Fullscreen 1 Font 24/Terminus Map View 76x50 Zoom Use 0% Tactical HUD 1 Map Filters NONE Filters NONE Steam 1 RUN: 0b27da0a-2c90-4dda-93f3-edd52acdbda1